bitfinex-derivatives/quotes_ETHF0:USTF0_20241024
["timestamp","ask_amount","ask_price","bid_price","bid_amount"]
[1729768450225,0.39654,2524.2,2524.1,1.86749155]
[1729768450420,1.53726836,2524.2,2524.1,0.4141]
[1729768451634,1.53726836,2524.2,2524.1,1.55482836]
[1729768456341,1.53726836,2524.2,2524.1,0.4141]
[1729768456842,0.39657,2524.0,2523.9,4.34852836]
[1729768457045,1.53729836,2524.0,2523.9,1.55032836]
[1729768457635,0.3966,2523.8,2523.7,1.40658984]
[1729768457850,1.14072836,2523.8,2523.5,1.03569155]
[1729768458152,0.39665,2523.5,2523.4,0.4096]
[1729768458347,1.53737836,2523.5,2523.4,0.4096]
[1729768458649,0.39665,2523.5,2523.4,1.55032836]
[1729768458852,0.39665,2523.5,2523.4,5.91018836]
[1729768459155,1.14072836,2523.6,2523.4,4.3728]
[1729768459350,1.53737836,2523.5,2523.4,0.4096]
[1729768461057,1.53737836,2523.5,2523.4,1.55032836]
[1729768463352,1.14072836,2523.5,2523.2,1.17627188]
[1729768463550,0.39668,2523.3,2523.2,3.11308024]
[1729768464344,0.39668,2523.3,2523.2,1.57567188]
[1729768464550,0.39668,2523.3,2523.2,2.71640024]
[1729768464959,0.39668,2523.3,2523.2,3.11309024]
[1729768465152,0.39668,2523.3,2523.2,2.71640024]
[1729768465351,1.53740836,2523.3,2523.2,0.3994]
[1729768468356,0.39669,2523.2,2523.1,0.3713262]
[1729768468559,2.34501836,2523.2,2523.1,0.4026]
[1729768469563,0.39673,2523.0,2522.9,2.35996836]
[1729768469763,0.39673,2523.0,2522.9,2.74000811]
[1729768469957,0.39673,2523.0,2522.9,6.70400811]
[1729768470759,0.39673,2523.0,2522.9,2.74000811]
[1729768474253,3.60453,2523.0,2522.9,0.38003975]
[1729768474458,0.39674,2522.9,2522.8,0.83575]
[1729768474658,1.53746836,2522.9,2522.8,0.83575]
[1729768476267,0.39674,2523.0,2522.9,0.39673]
[1729768476468,0.39674,2523.0,2522.9,1.53745836]
[1729768476655,1.53746836,2523.0,2522.9,1.53745836]
[1729768486473,0.39674,2523.0,2522.9,1.53746836]
[1729768488167,1.53746836,2523.0,2522.9,1.53746836]
[1729768489273,1.53746836,2523.0,2522.9,0.39674]
[1729768489574,1.53746836,2523.0,2522.9,1.53746836]
[1729768491366,0.39674,2523.0,2522.9,1.53746836]
[1729768492367,0.39672,2523.1,2523.0,0.3967]
[1729768492567,0.39672,2523.1,2523.0,2.36982836]
[1729768492870,1.53744836,2523.1,2523.0,2.36982836]
[1729768493372,0.39672,2523.1,2523.0,2.36982836]
[1729768493570,1.14072836,2523.2,2523.0,5.93632836]
[1729768493773,0.3967,2523.2,2523.1,1.53741836]
[1729768493969,0.3967,2523.2,2523.1,1.97841836]
[1729768501079,0.3967,2523.2,2523.1,2.36511344]
[1729768501673,0.3967,2523.2,2523.1,1.97841836]
[1729768503484,0.39669,2523.4,2523.3,0.39666]
[1729768503688,0.39669,2523.4,2523.3,1.53738836]
[1729768504180,0.39669,2523.4,2523.3,1.14072836]
[1729768504579,0.39666,2523.4,2523.3,1.14072836]
[1729768504779,1.53738836,2523.4,2523.3,1.14072836]
[1729768505076,0.39669,2523.2,2523.1,3.01768993]
[1729768505274,0.39669,2523.2,2523.1,2.62098993]
[1729768505478,0.39669,2523.2,2523.1,3.01769993]
[1729768505680,1.25249,2523.2,2523.1,3.01769993]
[1729768506592,1.25249,2523.2,2523.1,4.54015733]
[1729768507678,1.25249,2523.2,2523.1,4.54026559]
[1729768508509,1.25249,2523.2,2523.1,3.50100402]
[1729768508808,1.25249,2523.2,2523.1,4.54075834]
[1729768509508,1.25249,2523.2,2523.1,3.50100402]
[1729768509701,1.25249,2523.2,2523.1,5.05685781]
[1729768510297,1.25249,2523.2,2523.1,5.05713928]
[1729768512616,1.25249,2523.2,2523.1,3.53429215]
[1729768513506,1.25249,2523.2,2523.1,1.97843836]
[1729768517588,1.25249,2523.2,2523.1,3.01831859]
[1729768520601,1.25249,2523.2,2523.1,1.48088023]
[1729768520792,2.39321836,2523.2,2523.1,1.48088023]
[1729768521693,2.39321836,2523.2,2523.1,1.03988023]
[1729768522705,0.39671,2523.1,2523.0,2.95413294]
[1729768522997,0.39671,2523.1,2523.0,4.99713602]
[1729768523896,0.39671,2523.1,2523.0,3.43731567]
[1729768524403,0.39671,2523.1,2523.0,3.43729589]
[1729768525095,0.39671,2523.1,2523.0,4.99729052]
[1729768525294,0.39671,2523.1,2523.0,3.43729589]
[1729768525896,0.39671,2523.1,2523.0,7.40049589]
[1729768526200,0.39671,2523.1,2523.0,9.48025636]
[1729768527206,0.39671,2523.2,2523.1,0.39669]
[1729768527404,0.39671,2523.2,2523.1,3.48366154]
[1729768527609,0.39671,2523.2,2523.1,7.44686154]
[1729768527817,0.39668,2523.4,2523.3,0.39666]
[1729768528100,0.39668,2523.4,2523.3,2.57747942]
[1729768528300,0.39668,2523.4,2523.3,4.10079764]
[1729768528491,0.39668,2523.4,2523.3,8.06399764]
[1729768528696,0.39668,2523.4,2523.3,4.10079764]
[1729768529196,0.39668,2523.4,2523.3,6.54067942]
[1729768529505,0.39668,2523.4,2523.3,4.10075184]
[1729768529705,0.39668,2523.4,2523.3,8.06395184]
[1729768530305,0.39668,2523.4,2523.3,8.06395091]
[1729768530706,0.39668,2523.4,2523.3,8.18733737]
[1729768530902,0.39668,2523.4,2523.3,8.06408821]
[1729768532504,0.39668,2523.4,2523.3,7.02388078]
[1729768533099,0.39668,2523.4,2523.3,3.06068078]
[1729768533302,0.39668,2523.4,2523.3,7.02388078]
[1729768533508,0.39668,2523.4,2523.3,8.58401737]
[1729768533899,0.39668,2523.4,2523.3,8.18733737]
[1729768534207,0.39668,2523.4,2523.3,8.18794955]
[1729768534402,0.39668,2523.4,2523.3,8.58462955]
[1729768537907,0.39668,2523.4,2523.3,7.02449296]
[1729768539005,0.39668,2523.4,2523.3,8.70796296]
[1729768539209,0.39668,2523.4,2523.3,7.02488249]
[1729768540099,0.39668,2523.4,2523.3,6.62820249]
[1729768541202,0.39668,2523.4,2523.3,7.00395715]
[1729768541599,0.39668,2523.4,2523.3,8.56494194]
[1729768541803,0.39668,2523.4,2523.3,7.00395715]
[1729768542005,0.39668,2523.4,2523.3,8.56495768]
[1729768542205,0.39668,2523.4,2523.3,7.00395715]
[1729768543208,0.39668,2523.4,2523.3,8.56485008]
[1729768543602,0.39668,2523.4,2523.3,8.56485586]
[1729768544005,0.39668,2523.4,2523.3,7.0036912]
[1729768544201,0.39668,2523.4,2523.3,8.56451652]
[1729768544608,0.39668,2523.4,2523.3,7.0036912]
[1729768545314,0.39668,2523.4,2523.3,8.56448445]
[1729768547408,0.39668,2523.4,2523.3,8.56443462]
[1729768547612,0.39668,2523.4,2523.3,7.0036912]
[1729768548115,0.39668,2523.4,2523.3,8.56442415]
[1729768548616,0.39668,2523.4,2523.3,8.56440815]
[1729768549019,0.99142,2524.1,2523.4,0.99166]
[1729768549229,0.39655,2524.1,2524.0,1.14072836]
[1729768549412,0.39655,2524.1,2524.0,2.18103601]
[1729768549621,0.39655,2524.1,2524.0,2.61413601]
[1729768550318,0.39655,2524.1,2524.0,1.57382836]
[1729768553422,0.39655,2524.1,2524.0,4.78162836]
[1729768553823,0.39655,2524.1,2524.0,5.17819836]
[1729768554120,0.16946687,2524.3,2524.2,0.39652]
[1729768554323,0.16946687,2524.3,2524.2,1.53724836]
[1729768554618,0.16946687,2524.3,2524.2,2.48024836]
[1729768558425,0.39652,2524.4,2524.3,0.39651]
[1729768558721,0.39652,2524.4,2524.3,4.74503836]
[1729768560630,0.39652,2524.4,2524.3,3.2078]
[1729768560827,0.39652,2524.4,2524.3,4.34852836]
[1729768561432,0.39652,2524.4,2524.3,4.74504836]
[1729768563527,0.39652,2524.4,2524.3,4.34852836]
[1729768564121,0.39652,2524.4,2524.3,1.14072836]
[1729768564319,0.39652,2524.4,2524.3,4.34852836]
[1729768564525,0.39652,2524.4,2524.3,4.72844598]
[1729768565223,1.53724836,2524.4,2524.3,3.58771762]
[1729768565434,1.53724836,2524.4,2524.3,4.72844598]
[1729768566637,1.53724836,2524.4,2524.3,4.34852836]
[1729768566929,0.39652,2524.4,2524.3,4.34852836]
[1729768568927,0.39652,2524.4,2524.3,1.14072836]
[1729768569136,0.39652,2524.4,2524.3,4.34852836]
[1729768571134,0.39652,2524.4,2524.3,1.14072836]
[1729768572339,0.39652,2524.4,2524.3,4.34852836]
[1729768573537,0.39652,2524.4,2524.3,4.78232836]
[1729768578549,0.39652,2524.4,2524.3,5.17884836]
[1729768579337,0.39652,2524.4,2524.3,4.78232836]
[1729768579942,0.39652,2524.4,2524.3,5.18932836]
[1729768580247,0.39652,2524.4,2524.3,5.58584836]
[1729768580447,0.39652,2524.4,2524.3,5.18932836]
[1729768581447,0.39652,2524.4,2524.3,5.58584836]
[1729768581845,0.39652,2524.4,2524.3,5.18932836]
[1729768584047,0.39652,2524.4,2524.3,4.78232836]
[1729768584454,0.79712,2524.4,2524.3,4.78232836]
[1729768584953,3.2078,2525.2,2524.3,9.88465672]
[1729768585152,0.39644,2524.8,2524.7,3.2078]
[1729768585349,0.39644,2524.8,2524.7,4.77342836]
[1729768587254,0.39644,2524.8,2524.7,5.16988836]
[1729768587456,0.39644,2524.8,2524.7,1.96208836]
[1729768587958,0.39644,2524.8,2524.7,5.16988836]
[1729768588350,0.39644,2524.8,2524.7,4.77342836]
[1729768590949,0.39644,2524.8,2524.7,4.34852836]
[1729768591149,0.80624,2524.8,2524.7,4.34852836]
[1729768592153,0.80624,2524.8,2524.7,1.14072836]
[1729768592154,4.76704,2524.8,2524.7,1.14072836]
[1729768594163,4.3706,2524.8,2524.4,4.68036074]
[1729768594365,0.39649,2524.5,2524.4,4.68036074]
[1729768595964,0.39649,2524.5,2524.4,5.8210891]
[1729768596363,0.39649,2524.5,2524.4,7.34240775]
[1729768596759,0.39649,2524.5,2524.4,7.34242261]
[1729768597066,0.39649,2524.5,2524.4,7.34242177]
[1729768597561,0.39649,2524.5,2524.4,5.8210891]
[1729768597769,0.39649,2524.5,2524.4,7.86086342]
[1729768597955,0.39649,2524.5,2524.4,6.3060223]
[1729768598154,0.39649,2524.5,2524.4,7.86086342]
[1729768598559,0.39649,2524.5,2524.4,6.7025323]
[1729768598860,0.39649,2524.5,2524.4,7.3605663]
[1729768599161,0.39649,2524.5,2524.4,5.82332794]
[1729768599460,0.39649,2524.5,2524.4,7.3605663]
[1729768599658,0.39649,2524.5,2524.4,6.9640563]
[1729768599855,0.39649,2524.5,2524.4,7.3605663]
[1729768600257,1.40093,2524.8,2524.4,8.48601459]
[1729768600258,0.99113,2524.8,2524.4,8.48601459]
[1729768600565,0.39648,2524.6,2524.5,2.23656958]
[1729768600960,0.39648,2524.6,2524.5,4.5180263]
[1729768602661,0.39648,2524.6,2524.5,4.1215563]
[1729768602862,0.39648,2524.6,2524.5,0.3985]
[1729768603166,0.39649,2524.5,2524.4,5.62359958]
[1729768604670,0.39649,2524.5,2524.4,6.76432794]
[1729768604860,0.39649,2524.5,2524.4,5.82332794]
[1729768605862,0.39649,2524.5,2524.4,9.00213149]
[1729768606160,0.39649,2524.5,2524.4,9.39864149]
[1729768606566,0.39649,2524.5,2524.4,9.00213149]
[1729768608170,0.39648,2524.6,2524.5,0.39649]
[1729768608373,0.39648,2524.6,2524.5,5.75849844]
[1729768609486,0.39648,2524.6,2524.5,5.75850338]
[1729768609968,0.39648,2524.6,2524.5,5.36201338]
[1729768610164,0.39648,2524.6,2524.5,5.75850338]
[1729768610565,0.39648,2524.6,2524.5,5.36201338]
[1729768611171,0.39648,2524.6,2524.5,2.67794672]
[1729768611681,0.39648,2524.6,2524.5,2.28145672]
[1729768612272,0.39648,2524.6,2524.5,5.36219954]
[1729768612863,0.39648,2524.6,2524.5,8.56999954]
[1729768613772,0.39648,2524.6,2524.5,5.36219954]
[1729768613971,0.39648,2524.6,2524.5,8.56999954]
[1729768616977,0.39648,2524.6,2524.5,8.96648954]
[1729768617280,0.39646,2524.7,2524.6,0.39647]
[1729768617472,0.39645,2524.8,2524.7,0.39646]
[1729768617773,0.39639,2525.2,2525.0,0.3964]
[1729768617976,0.39639,2525.2,2525.1,4.17015025]
[1729768618175,0.39639,2525.2,2525.1,3.02942189]
[1729768620475,0.39639,2525.2,2525.1,1.98992836]
[1729768620670,0.39639,2525.2,2525.1,3.02942189]
[1729768620981,0.39639,2525.2,2525.1,1.98992836]
[1729768622275,0.39639,2525.2,2525.1,1.57692836]
[1729768627886,0.39641,2525.0,2524.9,3.2078]
[1729768628081,0.99098,2525.2,2524.9,1.14072836]
[1729768628082,1.3061,2525.1,2524.9,1.14072836]
[1729768628278,1.7025,2525.1,2525.0,1.14072836]
[1729768628790,5.6625,2525.1,2525.0,1.14072836]
[1729768630576,5.2661,2525.1,2525.0,1.14072836]
[1729768630784,5.6625,2525.1,2525.0,1.14072836]
[1729768633889,46.4625,2525.1,2525.0,1.14072836]
[1729768634090,5.6625,2525.1,2525.0,1.14072836]
[1729768635781,0.99088,2525.4,2525.0,1.14072836]
[1729768635992,0.39639,2525.2,2525.1,3.625]
[1729768636191,0.39639,2525.2,2525.1,4.0411]
[1729768637486,0.39639,2525.2,2525.1,5.18182836]
[1729768638086,0.39639,2525.2,2525.1,5.57822836]
[1729768638290,0.39639,2525.2,2525.1,5.18182836]
[1729768643888,0.39639,2525.2,2525.1,5.62352836]
[1729768646694,0.39639,2525.2,2525.1,2.41572836]
[1729768647594,0.39639,2525.2,2525.1,5.62352836]
[1729768648797,1.98127,2526.1,2525.3,0.39635]
[1729768649093,0.39624,2526.1,2526.0,1.14072836]
[1729768649493,4.35464,2526.1,2526.0,1.14072836]
[1729768649696,0.39624,2526.1,2526.0,1.14072836]
[1729768650390,0.39624,2526.1,2526.0,1.53697836]
[1729768650595,0.39624,2526.1,2526.0,1.14072836]
[1729768651898,0.39624,2526.1,2526.0,1.53697836]
[1729768652204,0.39624,2526.1,2526.0,1.57952836]
[1729768653491,0.39624,2526.1,2526.0,3.11650672]
[1729768654497,0.39624,2526.1,2526.0,1.97577836]
[1729768654690,0.39624,2526.1,2526.0,3.11650672]
[1729768656189,0.39624,2526.1,2526.0,2.72025672]
[1729768656798,0.39624,2526.1,2526.0,3.11650672]
[1729768656994,0.39624,2526.1,2526.0,2.72025672]
[1729768660402,0.39624,2526.1,2526.0,5.92805672]
[1729768665605,0.39624,2526.1,2526.0,6.32430672]
[1729768665801,0.99037,2526.7,2526.1,0.9906]
[1729768666002,0.99034,2526.8,2526.6,4.34852836]
[1729768666306,0.39613,2526.8,2526.7,1.14072836]
[1729768668803,0.39613,2526.8,2526.7,1.53686836]
[1729768669407,0.39613,2526.8,2526.7,1.14072836]
[1729768669607,0.39613,2526.8,2526.7,1.53686836]
[1729768669908,0.39613,2526.8,2526.7,1.14072836]
[1729768671205,1.85768,2527.0,2526.6,3.2078]
[1729768671206,0.39614,2526.7,2526.6,3.2078]
[1729768671511,0.39614,2526.7,2526.6,4.34852836]
[1729768674096,4.35374,2526.7,2526.6,1.14072836]
[1729768674297,0.39619,2526.4,2526.3,4.34852836]
[1729768674507,0.39619,2526.4,2526.3,3.2078]
[1729768674706,0.39619,2526.4,2526.3,5.48925672]
[1729768675198,0.39619,2526.4,2526.3,2.28145672]
[1729768684518,4.35459,2526.4,2526.3,2.28145672]
[1729768685119,4.78859,2526.4,2526.3,2.28145672]
[1729768686022,4.35459,2526.4,2526.3,2.28145672]
[1729768686214,0.39619,2526.4,2526.3,2.28145672]
[1729768689311,0.39619,2526.4,2526.3,2.67766672]
[1729768689523,0.39619,2526.5,2526.4,0.39618]
[1729768689716,0.39619,2526.5,2526.4,1.53690836]
[1729768690423,0.99029,2526.9,2526.5,0.39616]
[1729768690424,0.99033,2526.8,2526.5,0.39616]
[1729768690624,0.81763,2526.8,2526.7,4.34852836]
[1729768691115,0.81763,2526.8,2526.7,5.88539672]
[1729768691523,0.81763,2526.8,2526.7,5.48925672]
[1729768691912,0.81763,2526.8,2526.7,4.34852836]
[1729768694125,0.81763,2526.8,2526.7,1.14072836]
[1729768695520,0.81763,2526.8,2526.7,2.67759672]
[1729768695825,0.81763,2526.8,2526.7,1.14072836]
[1729768697631,0.81763,2526.8,2526.7,2.28145672]
[1729768697831,0.39613,2526.8,2526.7,1.14072836]
[1729768699524,0.39613,2526.8,2526.7,2.28145672]
[1729768699729,0.99023,2527.1,2526.7,6.23905672]
[1729768700030,0.99023,2527.1,2526.6,0.4065]
[1729768700031,0.39608,2527.1,2527.0,5.48925672]
[1729768700226,0.99016,2527.3,2527.0,5.48925672]
[1729768700429,0.39605,2527.3,2527.2,1.14072836]
[1729768720044,0.39605,2527.3,2527.2,1.54132836]
[1729768733346,1.39187,2527.5,2527.2,1.54132836]
[1729768733642,1.39187,2527.5,2527.4,1.14072836]
[1729768733643,0.79782,2527.5,2527.4,1.14072836]
[1729768741448,0.39602,2527.5,2527.4,1.14072836]
[1729768743850,7.1646,2527.5,2526.9,3.2078]
[1729768744053,0.3961,2527.0,2526.9,3.2078]
[1729768744952,0.3961,2527.0,2526.9,5.48925672]
[1729768745147,0.3961,2527.0,2526.9,4.34852836]
[1729768746042,0.3961,2527.0,2526.9,5.48925672]
[1729768747548,0.3961,2527.0,2526.9,2.28145672]
[1729768748552,0.3961,2527.0,2526.9,3.31964338]
[1729768750758,0.3961,2527.0,2526.9,5.23780022]
[1729768750961,0.3961,2527.0,2526.9,5.75689356]
[1729768751261,0.3961,2527.0,2526.9,5.2383329]
[1729768751461,0.3961,2527.0,2526.9,5.2383171]
[1729768751663,0.3961,2527.0,2526.9,3.32016026]
[1729768751860,0.3961,2527.0,2526.9,2.28145672]
[1729768752055,0.811,2527.0,2526.9,2.28145672]
[1729768753263,0.811,2527.0,2526.9,1.14072836]
[1729768753456,0.39611,2526.9,2526.8,3.2078]
[1729768753653,0.39611,2526.9,2526.8,1.14072836]
[1729768754763,0.39611,2526.9,2526.8,2.28145672]
[1729768755856,0.39611,2526.9,2526.8,1.14072836]
[1729768758065,4.35371,2526.9,2526.8,1.14072836]
[1729768758454,0.39616,2526.6,2526.5,4.24650354]
[1729768758655,0.39616,2526.6,2526.5,5.3872319]
[1729768759064,0.39616,2526.6,2526.5,4.24650354]
[1729768759365,0.39616,2526.6,2526.5,5.3872319]
[1729768759665,0.39616,2526.6,2526.5,4.34852836]
[1729768760358,0.4292,2526.8,2526.5,5.48925672]
[1729768760559,0.4292,2526.8,2526.7,2.28145672]
[1729768760766,0.82533,2526.8,2526.7,2.28145672]
[1729768761259,0.82533,2526.8,2526.7,1.14072836]
[1729768762959,0.82533,2526.8,2526.7,2.28145672]
[1729768763166,0.82533,2526.8,2526.7,1.14072836]
[1729768767765,0.39613,2526.8,2526.7,2.67759672]
[1729768767968,0.39613,2526.8,2526.7,1.14072836]
[1729768768162,0.39613,2526.8,2526.7,2.28145672]
[1729768768362,0.39613,2526.8,2526.7,3.11735672]
[1729768769064,0.99025,2527.0,2526.7,7.07495672]
[1729768769271,0.3961,2527.0,2526.9,2.28145672]
[1729768769762,0.3961,2527.0,2526.9,2.67756672]
[1729768770467,0.99017,2527.3,2526.9,2.28145672]
[1729768770666,0.99017,2527.3,2527.2,1.14072836]
[1729768770667,0.82895,2527.3,2527.2,1.14072836]
[1729768771162,0.82895,2527.3,2527.2,1.98802836]
[1729768771358,0.82895,2527.3,2527.2,2.38409836]
[1729768771564,0.39605,2527.3,2527.2,2.38409836]
[1729768773662,1.42295,2527.6,2527.2,5.94482836]
[1729768773862,4.19777,2527.8,2527.5,1.14072836]
[1729768774063,4.03887,2527.8,2527.7,2.28145672]
[1729768774256,4.03887,2527.8,2527.7,1.14072836]
[1729768777775,0.83107,2527.8,2527.7,2.28145672]
[1729768777970,0.83107,2527.8,2527.7,2.68415672]
[1729768781377,0.83107,2527.8,2527.7,1.54342836]
[1729768781968,0.83107,2527.8,2527.7,2.68415672]
[1729768782769,0.83107,2527.8,2527.7,1.54342836]
[1729768783472,0.83107,2527.8,2527.7,2.68415672]
[1729768783672,0.83107,2527.8,2527.7,1.54342836]
[1729768783872,0.83107,2527.8,2527.7,2.68415672]
[1729768783873,0.39597,2527.8,2527.7,2.68415672]
[1729768788581,0.39597,2527.8,2527.7,3.08014672]
[1729768796394,0.3994,2527.9,2527.8,2.67742672]
[1729768796395,0.79537,2527.9,2527.8,2.67742672]
[1729768798104,0.39594,2528.1,2528.0,0.39592]
[1729768798291,0.39594,2528.1,2528.0,5.88517672]
[1729768798689,0.39594,2528.1,2528.0,6.31477672]
[1729768800418,3.2078,2528.8,2528.0,9.87485672]
[1729768800618,0.39586,2528.5,2528.4,3.2078]
[1729768800807,0.39586,2528.5,2528.4,4.34852836]
[1729768801009,0.98962,2528.6,2528.4,9.44445672]
[1729768801217,0.83636,2528.5,2528.4,4.04128]
[1729768801612,0.83636,2528.5,2528.4,4.78612836]
[1729768802921,0.83636,2528.5,2528.4,5.92685672]
[1729768803113,0.83636,2528.5,2528.4,6.32273672]
[1729768803712,0.39586,2528.5,2528.4,9.88205672]
[1729768803918,0.98952,2528.9,2528.5,0.39585]
[1729768804226,0.3958,2528.9,2528.8,1.14072836]
[1729768805720,0.3958,2528.9,2528.8,1.57582836]
[1729768805918,0.3958,2528.9,2528.8,2.51382836]
[1729768806222,0.3958,2528.9,2528.8,2.90964836]
[1729768807622,1.39595,2529.1,2528.8,2.90964836]
[1729768807819,0.80227,2529.1,2529.0,1.14072836]
[1729768809718,0.80227,2529.1,2529.0,1.55562836]
[1729768811421,0.4065,2529.1,2528.6,3.6247]
[1729768811616,0.98947,2529.0,2528.6,0.938]
[1729768811815,0.39588,2528.4,2528.3,3.2078]
[1729768812129,0.39588,2528.4,2528.3,4.1458]
[1729768812524,0.39588,2528.4,2528.3,3.60369]
[1729768812723,0.39588,2528.4,2528.3,5.28652836]
[1729768812931,0.39588,2528.4,2528.3,4.34852836]
[1729768813728,0.39588,2528.4,2528.3,1.14072836]
[1729768819435,0.39592,2528.1,2528.0,3.2078]
[1729768819637,0.39592,2528.1,2528.0,5.48925672]
[1729768821727,0.39592,2528.1,2528.0,2.28145672]
[1729768821933,0.39592,2528.1,2528.0,5.48925672]
[1729768824241,4.35192,2528.1,2528.0,3.2078]
[1729768824536,0.98995,2527.8,2527.5,0.938]
[1729768824739,0.396,2527.6,2527.5,1.33402]
[1729768826043,0.396,2527.6,2527.5,2.47474836]
[1729768826443,0.396,2527.6,2527.5,3.21945672]
[1729768826945,0.396,2527.6,2527.5,2.47474836]
[1729768828347,0.396,2527.6,2527.5,3.61547672]
[1729768830345,2.25568,2528.0,2527.5,7.57227672]
[1729768830549,0.39598,2527.8,2527.7,3.60377]
[1729768830938,0.39598,2527.8,2527.7,7.55977]
[1729768832151,0.39598,2527.8,2527.7,9.84122672]
[1729768832350,0.8168,2528.2,2527.7,9.44525672]
[1729768832548,0.39596,2528.0,2527.9,3.60375]
[1729768832757,1.39752,2528.4,2527.9,3.60374]
[1729768832946,0.39594,2528.0,2527.9,3.60374]
[1729768833156,1.39752,2528.4,2527.9,4.1448]
[1729768833451,0.39593,2528.2,2528.1,0.39591]
[1729768833653,0.39593,2528.2,2528.1,1.53663836]
[1729768833859,0.39593,2528.2,2528.1,1.14072836]
[1729768834252,0.39593,2528.2,2528.1,1.53664836]
[1729768834861,0.39593,2528.2,2528.1,5.49184836]
[1729768835057,4.19748,2528.5,2528.1,5.09592836]
[1729768835259,4.19748,2528.5,2528.0,1.14072836]
[1729768835260,0.39591,2528.3,2528.2,0.8199]
[1729768835763,0.39591,2528.3,2528.2,4.7751]
[1729768835956,0.39589,2528.3,2528.2,7.9829]
[1729768836551,1.39024,2528.6,2528.2,7.587]
[1729768836759,0.79645,2528.6,2528.5,1.14072836]
[1729768837764,0.39585,2528.6,2528.5,2.28145672]
[1729768838163,0.39585,2528.6,2528.5,1.14072836]
[1729768838467,0.39585,2528.6,2528.5,2.28145672]
[1729768838964,0.39585,2528.6,2528.5,2.67731672]
[1729768839862,0.39585,2528.6,2528.5,6.63251672]
[1729768840561,0.39585,2528.6,2528.5,9.84031672]
[1729768841361,0.98952,2528.9,2528.5,9.44445672]
[1729768841571,0.3958,2528.9,2528.8,4.34852836]
[1729768841770,0.3958,2528.9,2528.8,4.74434836]
[1729768842065,0.3958,2528.9,2528.8,8.30292836]
[1729768843065,0.3958,2528.9,2528.8,8.69874836]
[1729768843565,0.3958,2528.9,2528.8,8.30292836]
[1729768843755,0.3958,2528.9,2528.8,8.69874836]
[1729768844162,0.3958,2528.9,2528.8,4.34852836]
[1729768844367,0.3958,2528.9,2528.8,5.71122836]
[1729768846667,0.3958,2528.9,2528.8,4.77422836]
[1729768846875,0.3958,2528.9,2528.8,2.70715672]
[1729768851178,0.3958,2528.9,2528.8,3.10297672]
[1729768851368,2.25011,2529.2,2528.9,0.39579]
[1729768851369,0.3958,2529.0,2528.9,0.39579]
[1729768851574,0.3958,2529.0,2528.9,1.53652836]
[1729768852876,0.3958,2529.0,2528.9,1.14072836]
[1729768853174,0.3958,2529.0,2528.9,1.53652836]
[1729768853377,0.3958,2529.0,2528.9,1.14072836]
[1729768854976,0.3958,2529.0,2528.9,1.53652836]
[1729768856274,0.3958,2529.0,2528.9,1.14072836]
[1729768857773,0.3958,2529.0,2528.9,1.53652836]
[1729768858978,0.3958,2529.0,2528.9,5.49092836]
[1729768862180,0.39577,2529.2,2529.1,0.39576]
[1729768862378,0.39574,2529.3,2529.2,0.83495]
[1729768862579,0.39574,2529.3,2529.2,0.8624]
[1729768862778,0.39574,2529.3,2529.2,6.35247836]
[1729768862976,0.39574,2529.3,2529.2,2.39887836]
[1729768863176,0.39574,2529.3,2529.2,0.8624]
[1729768863478,0.98933,2529.4,2529.2,1.14072836]
[1729768863672,0.39577,2529.1,2529.0,0.936]
[1729768864474,0.39577,2529.1,2529.0,2.07672836]
[1729768864780,0.80237,2529.1,2529.0,2.07672836]
[1729768867983,0.80237,2529.1,2529.0,1.14072836]
[1729768870086,4.75677,2529.1,2529.0,1.14072836]
[1729768870682,0.80237,2529.1,2529.0,1.14072836]
[1729768870874,4.75677,2529.1,2529.0,1.14072836]
[1729768873177,0.80237,2529.1,2529.0,1.14072836]
[1729768880291,0.39577,2529.1,2529.0,1.53650836]
[1729768881487,0.4174,2529.3,2529.0,1.14072836]
[1729768881786,0.39574,2529.3,2529.2,1.53645836]
[1729768882289,2.28098,2529.5,2529.2,1.53645836]
[1729768882290,0.39574,2529.4,2529.3,0.39572]
[1729768882595,0.39574,2529.4,2529.3,1.53644836]
[1729768883885,0.39574,2529.4,2529.3,2.67717672]
[1729768884585,0.39574,2529.4,2529.3,6.63077672]
[1729768885790,0.39574,2529.4,2529.3,6.63079672]
[1729768887988,2.4173,2529.9,2529.3,6.63079672]
[1729768887989,3.2078,2530.9,2529.3,8.79022953]
[1729768888193,0.3956,2530.2,2530.1,3.2078]
[1729768888402,0.3956,2530.2,2530.1,4.2108]
[1729768888592,0.3956,2530.2,2530.1,8.55841]
[1729768888800,0.3956,2530.2,2530.1,8.1628]
[1729768889094,0.98886,2530.6,2530.1,8.5584]
[1729768889395,0.39553,2530.6,2530.5,1.14072836]
[1729768891795,0.39553,2530.6,2530.5,1.55132836]
[1729768895992,0.39553,2530.6,2530.5,1.95782836]
[1729768898395,0.39553,2530.6,2530.5,2.35337836]
[1729768898998,0.39553,2530.6,2530.5,6.30537836]
[1729768899996,0.39553,2530.6,2530.5,5.90982836]
[1729768901290,0.39553,2530.6,2530.5,6.68240321]
[1729768903103,1.41127,2530.8,2530.5,6.68240321]
[1729768903290,0.818,2530.8,2530.7,4.34852836]
[1729768903698,0.818,2530.8,2530.7,4.75302836]
[1729768906202,0.818,2530.8,2530.7,9.09974836]
[1729768906203,0.3955,2530.8,2530.7,9.09974836]
[1729768906504,0.3955,2530.8,2530.7,8.70422836]
[1729768906704,0.4071,2531.0,2530.7,1.021]
[1729768906906,0.3955,2530.8,2530.7,1.021]
[1729768907404,0.3955,2530.8,2530.7,2.16172836]
[1729768910206,0.3955,2530.8,2530.7,1.14072836]
[1729768918909,0.3955,2530.8,2530.7,1.54542836]
[1729768921315,0.3955,2530.8,2530.7,1.14072836]
[1729768925413,0.3955,2530.8,2530.7,1.96852836]
[1729768926019,0.3955,2530.8,2530.7,2.36404836]
[1729768927915,0.4071,2531.0,2530.7,1.96852836]
[1729768928116,0.4071,2531.0,2530.9,1.14072836]
[1729768928415,0.80257,2531.0,2530.9,1.14072836]
[1729768929614,0.80257,2531.0,2530.9,4.74401836]
[1729768930017,0.80257,2531.0,2530.7,0.8278]
[1729768930219,3.9512,2530.9,2530.6,3.2078]